bitfinex-derivatives/quotes_BNBF0:USTF0_20250523
["timestamp","ask_amount","ask_price","bid_price","bid_amount"]
[1747985279257,0.97556806,686.52,685.93,0.29157494]
[1747985281064,0.97556806,686.54,685.93,0.29157494]
[1747985282359,0.97556806,686.53,685.93,0.29157494]
[1747985283667,0.97556806,686.59,685.93,0.29157494]
[1747985283869,0.46785221,686.58,685.93,0.29157494]
[1747985284069,0.46785393,686.57,685.93,0.29157494]
[1747985284370,0.97556806,686.59,685.93,0.29157494]
[1747985284866,1.08640777,686.62,685.93,0.29157494]
[1747985285068,0.46774947,686.61,685.93,0.29157494]
[1747985285367,0.46774947,686.6,685.93,0.29157494]
[1747985285568,1.08640777,686.62,685.93,0.29157494]
[1747985285867,0.46775406,686.61,685.93,0.29157494]
[1747985286067,1.08640777,686.62,685.93,0.29157494]
[1747985286470,1.08640777,686.55,685.93,0.29157494]
[1747985287172,1.032,686.54,685.93,0.29157494]
[1747985288570,0.97556806,686.53,685.93,0.29157494]
[1747985300479,1.032,686.54,685.93,0.29157494]
[1747985306379,0.98127562,686.53,685.93,0.29157494]
[1747985307681,0.98127562,686.52,685.93,0.29157494]
[1747985308773,0.98127562,686.51,685.93,0.29157494]
[1747985310079,0.98127562,686.5,685.93,0.29157494]
[1747985311379,0.98127562,686.49,685.93,0.29157494]
[1747985313181,0.98127562,686.48,685.93,0.29157494]
[1747985314179,0.98127562,686.47,685.93,0.29157494]
[1747985315789,1.032,686.54,685.93,0.29157494]
[1747985316889,0.98116863,686.53,685.93,0.29157494]
[1747985318791,0.98116863,686.52,685.93,0.29157494]
[1747985320692,0.98116863,686.51,685.93,0.29157494]
[1747985322593,0.98116863,686.53,685.93,0.29157494]
[1747985323589,0.98116863,686.52,685.93,0.29157494]
[1747985324396,0.98116863,686.51,685.93,0.29157494]
[1747985325598,0.948,686.5,685.93,0.29157494]
[1747985326398,0.98116863,686.49,685.93,0.29157494]
[1747985327997,0.98116863,686.48,685.93,0.29157494]
[1747985329499,0.98116863,686.47,685.93,0.29157494]
[1747985331600,0.98116863,686.46,685.93,0.29157494]
[1747985332899,0.948,686.5,685.93,0.29157494]
[1747985335002,0.98049881,686.49,685.93,0.29157494]
[1747985336403,0.98049881,686.48,685.93,0.29157494]
[1747985338503,0.98049881,686.49,685.93,0.29157494]
[1747985348916,0.98049881,686.55,685.93,0.29157494]
[1747985350821,1.08640777,686.54,685.93,0.29157494]
[1747985351120,1.345,686.53,685.93,0.29157494]
[1747985351820,0.98049881,686.52,685.93,0.29157494]
[1747985392666,0.98049881,686.62,685.93,0.29157494]
[1747985393763,0.98049881,686.61,685.93,0.29157494]
[1747985395272,0.875,686.6,685.93,0.29157494]
[1747985396073,0.98049881,686.59,685.93,0.29157494]
[1747985397578,0.98049881,686.58,685.93,0.29157494]
[1747985399780,0.98049881,686.57,685.93,0.29157494]
[1747985400980,0.98049881,686.56,685.93,0.29157494]
[1747985403083,0.98049881,686.55,685.93,0.29157494]
[1747985404885,0.98049881,686.54,685.93,0.29157494]
[1747985406484,0.98049881,686.53,685.93,0.29157494]
[1747985407785,0.875,686.6,685.93,0.29157494]
[1747985407786,0.98049881,686.52,685.93,0.29157494]
[1747985409587,0.98049881,686.51,685.93,0.29157494]
[1747985410489,0.98049881,686.5,685.93,0.29157494]
[1747985411784,0.98049881,686.49,685.93,0.29157494]
[1747985413290,0.98049881,686.48,685.93,0.29157494]
[1747985414990,0.98049881,686.47,685.93,0.29157494]
[1747985416491,0.98049881,686.55,685.93,0.29157494]
[1747985419996,0.98049881,686.59,685.93,0.29157494]
[1747985427004,0.98049881,686.59,685.94,1.80656811]
[1747985427203,0.98049881,686.59,685.95,0.29156644]
[1747985429906,0.98049881,686.59,685.97,1.80656811]
[1747985430105,0.98049881,686.59,685.98,0.29155368]
[1747985430908,0.875,686.6,685.98,0.29155368]
[1747985434810,0.97938924,686.59,685.98,0.29155368]
[1747985436314,0.97938924,686.58,685.98,0.29155368]
[1747985437515,0.97938924,686.57,685.98,0.29155368]
[1747985438916,0.97938924,686.56,685.98,0.29155368]
[1747985439616,0.46850117,686.55,685.98,0.29155368]
[1747985439810,0.46850117,686.54,685.98,0.29155368]
[1747985440010,0.46852173,686.53,685.98,0.29155368]
[1747985440210,0.97938924,686.56,685.98,0.29155368]
[1747985440411,0.46851293,686.55,685.98,0.29155368]
[1747985440614,0.46851293,686.54,685.98,0.29155368]
[1747985440814,0.46851293,686.53,685.98,0.29155368]
[1747985441017,0.46851293,686.52,685.98,0.29155368]
[1747985441316,0.97938924,686.54,685.98,0.29155368]
[1747985441617,0.46841632,686.53,685.98,0.29155368]
[1747985441814,0.97938924,686.54,685.98,0.29155368]
[1747985442014,0.46832671,686.53,685.98,0.29155368]
[1747985442213,0.97938924,686.54,685.98,0.29155368]
[1747985442412,0.46831569,686.53,685.98,0.29155368]
[1747985442720,0.97938924,686.52,685.98,0.29155368]
[1747985444519,0.875,686.6,685.98,0.29155368]
[1747985444520,0.97938924,686.51,685.98,0.29155368]
[1747985446719,0.97938924,686.5,685.98,0.29155368]
[1747985447820,0.97938924,686.49,685.98,0.29155368]
[1747985449421,0.97938924,686.48,685.98,0.29155368]
[1747985450320,0.97938924,686.47,685.98,0.29155368]
[1747985452226,0.97938924,686.46,685.98,0.29155368]
[1747985453626,0.97938924,686.45,685.98,0.29155368]
[1747985454928,0.97938924,686.44,685.98,0.29155368]
[1747985455929,0.97938924,686.43,685.98,0.29155368]
[1747985457530,0.97938924,686.42,685.98,0.29155368]
[1747985458834,0.97938924,686.41,685.98,0.29155368]
[1747985461035,0.97938924,686.4,685.98,0.29155368]
[1747985462131,0.97938924,686.39,685.98,0.29155368]
[1747985463433,0.97938924,686.38,685.98,0.29155368]
[1747985465337,0.97938924,686.37,685.98,0.29155368]
[1747985467440,0.97938924,686.36,685.98,0.29155368]
[1747985469436,0.97938924,686.35,685.98,0.29155368]
[1747985470442,0.97938924,686.34,685.22,1.80656811]
[1747985470643,0.97938924,686.34,685.24,0.29186854]
[1747985471541,0.97938924,686.33,685.24,0.29186854]
[1747985472442,0.97938924,686.32,685.26,1.80656811]
[1747985472742,0.97938924,686.32,685.28,0.2918515]
[1747985473149,0.97938924,686.31,685.28,0.2918515]
[1747985474142,0.97938924,686.3,685.29,1.80656811]
[1747985474342,0.97938924,686.3,685.31,0.29183872]
[1747985474942,0.97938924,686.29,685.31,0.29183872]
[1747985476845,0.97938924,686.28,685.31,0.29183872]
[1747985477844,0.97938924,686.27,685.31,0.29183872]
[1747985479448,1.08640777,686.57,685.31,0.29183872]
[1747985479649,0.4667929,686.56,685.31,0.29183872]
[1747985479849,0.4667929,686.55,685.31,0.29183872]
[1747985480050,1.08640777,686.57,685.31,0.29183872]
[1747985480244,0.46679411,686.56,685.31,0.29183872]
[1747985480445,0.46679411,686.55,685.31,0.29183872]
[1747985480644,0.99,686.55,685.31,0.29183872]
[1747985480844,0.97391332,686.54,685.31,0.29183872]
[1747985482051,0.97391332,686.53,685.31,0.29183872]
[1747985483250,0.97391332,686.54,685.31,0.29183872]
[1747985488456,0.46728398,686.53,685.31,0.29183872]
[1747985488656,0.97391332,686.52,685.31,0.29183872]
[1747985490358,0.97391332,686.54,685.32,1.80656811]
[1747985490559,0.46760811,686.53,685.34,0.29182595]
[1747985490759,0.46760811,686.52,685.34,0.29182595]
[1747985490961,0.46760811,686.51,685.34,0.29182595]
[1747985491153,0.97391332,686.54,685.34,0.29182595]
[1747985491357,0.46761528,686.53,685.34,0.29182595]
[1747985491558,0.46761528,686.52,685.34,0.29182595]
[1747985491757,1.4415286,686.51,685.34,0.29182595]
[1747985491958,0.46761528,686.5,685.34,0.29182595]
[1747985492556,0.46792072,686.49,685.34,0.29182595]
[1747985492760,0.97391332,686.51,685.34,0.29182595]
[1747985492959,0.46792072,686.5,685.34,0.29182595]
[1747985493161,0.46792072,686.49,685.34,0.29182595]
[1747985493361,0.97391332,686.51,685.34,0.29182595]
[1747985493556,0.46792899,686.5,685.34,0.29182595]
[1747985493860,0.46792899,686.49,685.34,0.29182595]
[1747985494059,0.46792899,686.48,685.34,0.29182595]
[1747985494260,0.97391332,686.51,685.34,0.29182595]
[1747985494464,0.97391332,686.48,685.39,1.80656811]
[1747985494661,0.46804839,686.47,685.41,0.29179615]
[1747985495765,0.97391332,686.46,685.41,0.29179615]
[1747985496566,0.46843052,686.45,685.41,0.29179615]
[1747985496767,0.97391332,686.46,685.41,0.29179615]
[1747985496965,0.46843901,686.45,685.41,0.29179615]
[1747985497166,0.97391332,686.46,685.41,0.29179615]
[1747985497363,0.46843921,686.45,685.41,0.29179615]
[1747985497569,0.46843921,686.44,685.47,1.80656811]
[1747985497871,0.46843921,686.44,685.48,0.29176635]
[1747985498070,0.46862853,686.43,685.48,0.29176635]
[1747985498270,2.06032109,686.45,685.48,0.29176635]
[1747985498463,0.46862873,686.44,685.48,0.29176635]
[1747985498662,0.46862873,686.43,685.48,0.29176635]
[1747985498865,0.46862873,686.42,685.48,0.29176635]
[1747985499064,0.97391332,686.41,685.48,0.29176635]
[1747985499469,0.46915062,686.4,685.48,0.29176635]
[1747985499670,0.46915133,686.39,685.48,0.29176635]
[1747985499872,0.97391332,686.41,685.48,0.29176635]
[1747985500070,0.46914945,686.4,685.48,0.29176635]
[1747985500270,0.97391332,686.41,685.48,0.29176635]
[1747985500471,0.46914965,686.4,685.48,0.29176635]
[1747985500667,1.44306683,686.39,685.53,1.80656811]
[1747985500871,0.97391332,686.39,685.54,0.29174081]
[1747985501972,0.97391332,686.38,685.54,0.29174081]
[1747985502672,0.46918106,686.37,685.54,0.29174081]
[1747985502871,0.46918106,686.36,685.54,0.29174081]
[1747985503070,0.97391332,686.38,685.54,0.29174081]
[1747985503267,0.46918283,686.37,685.54,0.29174081]
[1747985503471,0.46918283,686.36,685.54,0.29174081]
[1747985503670,0.97391332,686.38,685.54,0.29174081]
[1747985503873,0.97391332,686.36,685.54,0.29174081]
[1747985505474,0.97391332,686.35,685.54,0.29174081]
[1747985507176,0.97391332,686.34,685.54,0.29174081]
[1747985508776,0.97391332,686.33,685.54,0.29174081]
[1747985510478,0.97391332,686.32,685.54,0.29174081]
[1747985511978,0.97391332,686.31,685.54,0.29174081]
[1747985513580,0.97391332,686.3,685.54,0.29174081]
[1747985515480,0.97391332,686.29,685.54,0.29174081]
[1747985516990,0.97391332,686.28,685.54,0.29174081]
[1747985518790,0.97391332,686.27,685.54,0.29174081]
[1747985520693,0.97391332,686.26,685.54,0.29174081]
[1747985521896,0.97391332,686.25,685.54,0.29174081]
[1747985523801,0.97391332,686.24,685.54,0.29174081]
[1747985525299,0.97391332,686.23,685.54,0.29174081]
[1747985526798,0.97391332,686.38,685.54,0.29174081]
[1747985527401,0.912,686.37,685.54,0.29174081]
[1747985528500,0.97391332,686.36,685.54,0.29174081]
[1747985530803,0.97391332,686.35,685.54,0.29174081]
[1747985531602,0.97391332,686.34,685.54,0.29174081]
[1747985534105,0.97391332,686.33,685.54,0.29174081]
[1747985535503,0.97391332,686.32,685.54,0.29174081]
[1747985537604,0.97391332,686.31,685.54,0.29174081]
[1747985538802,0.97391332,686.3,685.54,0.29174081]
[1747985540807,0.912,686.37,685.54,0.29174081]
[1747985540808,0.97391332,686.29,685.54,0.29174081]
[1747985542408,0.97391332,686.36,685.54,0.29174081]
[1747985543409,0.97391332,686.35,685.54,0.29174081]
[1747985544704,0.97391332,686.34,685.54,0.29174081]
[1747985546012,0.97391332,686.33,685.54,0.29174081]
[1747985547511,0.97391332,686.32,685.54,0.29174081]
[1747985549211,0.97391332,686.31,685.54,0.29174081]
[1747985549707,1.115,686.3,685.54,0.29174081]
[1747985550611,0.97391332,686.29,685.54,0.29174081]
[1747985551713,0.97391332,686.28,685.54,0.29174081]
[1747985553409,0.97391332,686.27,685.54,0.29174081]
[1747985554915,0.97391332,686.26,685.54,0.29174081]
[1747985556215,0.97391332,686.25,685.54,0.29174081]
[1747985557916,1.115,686.3,685.54,0.29174081]
[1747985557917,0.97391332,686.24,685.54,0.29174081]
[1747985559516,0.97391332,686.23,685.54,0.29174081]
[1747985560823,0.97391332,686.22,685.54,0.29174081]
[1747985562821,1.115,686.3,685.54,0.29174081]
[1747985564323,0.96570365,686.29,685.54,0.29174081]
[1747985565222,0.96570365,686.28,685.54,0.29174081]
[1747985566621,0.96570365,686.29,685.54,0.29174081]
[1747985569826,0.96570365,686.29,685.55,1.80656811]
[1747985570027,0.96570365,686.29,685.56,0.2917323]
[1747985573136,0.96570365,686.29,685.59,1.80656811]
[1747985573431,0.96570365,686.29,685.6,0.29171528]
[1747985584148,1.08640777,686.53,685.6,0.29171528]
[1747985585250,1.169,686.52,685.6,0.29171528]
[1747985586452,0.96570365,686.51,685.7,1.80656811]
[1747985586652,0.96570365,686.51,685.72,0.29166423]
[1747985587956,0.96570365,686.5,685.72,0.29166423]
[1747985589756,0.96570365,686.49,685.72,0.29166423]
[1747985591257,0.96570365,686.48,685.72,0.29166423]
[1747985593458,0.96570365,686.47,685.72,0.29166423]
[1747985594959,1.169,686.52,685.72,0.29166423]
[1747985594960,0.96570365,686.46,685.72,0.29166423]
[1747985596254,0.96570365,686.45,685.72,0.29166423]
[1747985597064,0.96570365,686.44,685.72,0.29166423]
[1747985599865,0.96570365,686.43,685.72,0.29166423]
[1747985601165,1.88670365,686.42,685.72,0.29166423]
[1747985602863,0.921,686.42,685.72,0.29166423]
[1747985624992,0.95522124,686.41,685.72,0.29166423]
[1747985626794,0.95522124,686.4,685.72,0.29166423]
[1747985628598,0.95522124,686.41,685.72,0.29166423]
[1747985654724,0.46360081,686.4,685.72,0.29166423]
[1747985655023,0.95522124,686.41,685.72,0.29166423]
[1747985655322,0.46361085,686.4,685.72,0.29166423]
[1747985655524,0.4635404,686.39,685.72,0.29166423]
[1747985655723,0.95522124,686.41,685.72,0.29166423]
[1747985655924,0.46353097,686.4,685.72,0.29166423]
[1747985656118,0.46353097,686.39,685.72,0.29166423]
[1747985656318,0.95522124,686.41,685.72,0.29166423]
[1747985656521,0.46345767,686.4,685.72,0.29166423]
[1747985656715,0.46344103,686.39,685.72,0.29166423]
[1747985656921,0.95522124,686.51,685.72,0.29166423]
[1747985657119,0.46344212,686.5,685.72,0.29166423]
[1747985657322,0.46344212,686.49,685.72,0.29166423]
[1747985657522,0.46344212,686.48,685.72,0.29166423]
[1747985657718,0.46344212,686.47,685.72,0.29166423]
[1747985657919,0.46344212,686.46,685.72,0.29166423]
[1747985658225,0.46336328,686.45,685.72,0.29166423]
[1747985658425,0.46336328,686.44,685.72,0.29166423]
[1747985658624,0.46336328,686.43,685.72,0.29166423]
[1747985658825,0.46336328,686.42,685.72,0.29166423]
[1747985659019,0.46336328,686.41,685.72,0.29166423]
[1747985659223,0.46336328,686.4,685.72,0.29166423]
[1747985659421,1.034,686.43,685.72,0.29166423]
[1747985659627,1.41845219,686.42,685.72,0.29166423]
[1747985659822,0.46323095,686.41,685.72,0.29166423]
[1747985660026,0.46323098,686.4,685.72,0.29166423]
[1747985660226,0.95522124,686.42,685.72,0.29166423]
[1747985660428,0.46318667,686.41,685.72,0.29166423]
[1747985660628,0.46318667,686.4,685.72,0.29166423]
[1747985660829,0.95522124,686.42,685.72,0.29166423]
[1747985661027,0.46317799,686.41,685.72,0.29166423]
[1747985661229,0.46317799,686.4,685.72,0.29166423]
[1747985661430,0.95522124,686.42,685.72,0.29166423]
[1747985661626,0.4631303,686.41,685.72,0.29166423]
[1747985661831,0.95522124,686.39,685.72,0.29166423]
[1747985663537,0.95522124,686.38,685.72,0.29166423]
[1747985665433,0.95522124,686.37,685.72,0.29166423]
[1747985667041,0.95522124,686.36,685.72,0.29166423]
[1747985668242,1.034,686.43,685.72,0.29166423]
[1747985668243,0.95522124,686.35,685.72,0.29166423]
[1747985669643,0.95522124,686.34,685.72,0.29166423]
[1747985670744,0.95522124,686.33,685.72,0.29166423]
[1747985672247,0.95522124,686.32,685.72,0.29166423]
[1747985673741,0.95522124,686.31,685.72,0.29166423]
[1747985674947,0.95522124,686.3,685.72,0.29166423]
[1747985676648,0.95522124,686.29,685.72,0.29166423]
[1747985677549,0.95522124,686.29,685.1,1.80656811]
[1747985677749,0.95522124,686.29,685.12,0.29191966]
[1747985677750,1.136,686.28,685.12,0.29191966]
[1747985678048,2.09122124,686.28,685.12,0.29191966]
[1747985678349,0.46346327,686.27,685.12,0.29191966]
[1747985678649,2.09122124,686.28,685.12,0.29191966]
[1747985678844,0.46358405,686.27,685.12,0.29191966]
[1747985679043,2.09122124,686.28,685.12,0.29191966]
[1747985679246,0.46358294,686.27,685.12,0.29191966]
[1747985679447,2.09122124,686.28,685.12,0.29191966]
[1747985679648,0.95522124,686.26,685.12,0.29191966]
[1747985680455,0.46377406,686.25,685.12,0.29191966]
[1747985680653,0.95522124,686.26,685.12,0.29191966]
[1747985680952,0.46377406,686.25,685.12,0.29191966]
[1747985681254,0.95522124,686.25,685.12,0.29191966]
[1747985681649,0.46389063,686.24,685.12,0.29191966]
[1747985681949,0.46389063,686.23,685.12,0.29191966]
[1747985682148,0.46389063,686.22,685.12,0.29191966]
[1747985682345,0.46389063,686.21,685.12,0.29191966]
[1747985682550,0.46389063,686.2,685.12,0.29191966]
[1747985682752,0.46389063,686.19,685.12,0.29191966]
[1747985683054,0.46403955,686.18,685.12,0.29191966]
[1747985683352,0.46403955,686.17,685.12,0.29191966]
[1747985683546,0.46403955,686.16,685.12,0.29191966]
[1747985683747,0.46403955,686.15,685.12,0.29191966]
[1747985683951,1.08640777,686.21,685.12,0.29191966]
[1747985684154,0.46414606,686.2,685.12,0.29191966]
[1747985684352,0.46414606,686.19,685.12,0.29191966]
[1747985684652,0.46414606,686.18,685.12,0.29191966]
[1747985684853,0.46414606,686.17,685.12,0.29191966]
[1747985685152,0.46414606,686.16,685.12,0.29191966]
[1747985685350,0.46414606,686.15,685.12,0.29191966]
[1747985685550,1.08640777,686.21,685.12,0.29191966]
[1747985685747,0.95522124,686.14,685.12,0.29191966]
[1747985686855,0.46419381,686.13,685.12,0.29191966]
[1747985687053,0.95522124,686.14,685.12,0.29191966]
[1747985687255,0.95522124,686.12,685.12,0.29191966]
[1747985688951,1.08640777,686.18,685.12,0.29191966]
[1747985689158,0.4642353,686.17,685.12,0.29191966]
[1747985690052,0.46424208,686.16,685.12,0.29191966]
[1747985690255,1.41946332,686.15,685.12,0.29191966]
[1747985690555,0.46424208,686.14,685.12,0.29191966]
[1747985690755,0.46424208,686.13,685.12,0.29191966]
[1747985691060,0.46422877,686.12,685.12,0.29191966]
[1747985691257,0.46422877,686.11,685.12,0.29191966]
[1747985691455,0.46422877,686.1,685.12,0.29191966]
[1747985691656,0.46415171,686.09,685.12,0.29191966]
[1747985691860,0.46415972,686.08,685.12,0.29191966]
[1747985692060,0.95522124,686.15,685.12,0.29191966]
[1747985692261,0.95522124,686.1,685.12,0.29191966]
[1747985692460,0.46416002,686.09,685.12,0.29191966]
[1747985692759,0.46416002,686.08,685.12,0.29191966]
[1747985692962,0.46416002,686.07,685.12,0.29191966]
[1747985693155,0.95522124,686.1,685.12,0.29191966]
[1747985693354,0.46404079,686.09,685.12,0.29191966]
[1747985693559,1.41926203,686.08,685.12,0.29191966]
[1747985693758,0.46404079,686.07,685.12,0.29191966]
[1747985695062,0.95522124,686.06,685.12,0.29191966]
[1747985695961,1.08640777,686.1,685.12,0.29191966]
[1747985696162,0.46403357,686.09,685.12,0.29191966]
[1747985696361,0.46403357,686.08,685.12,0.29191966]
[1747985696560,1.08640777,686.1,685.12,0.29191966]
[1747985696760,0.46400346,686.09,685.12,0.29191966]
[1747985696959,0.95522124,686.07,685.12,0.29191966]
[1747985697861,1.08640777,686.12,685.12,0.29191966]
[1747985698061,0.46398362,686.11,685.12,0.29191966]
[1747985698256,0.46398362,686.1,685.12,0.29191966]
[1747985698459,0.46398362,686.09,685.12,0.29191966]
[1747985698658,1.08640777,686.12,685.12,0.29191966]
[1747985698860,0.4639522,686.11,685.12,0.29191966]
[1747985699059,0.4639533,686.1,685.12,0.29191966]
[1747985699256,0.4639533,686.09,685.12,0.29191966]
[1747985699463,1.08640777,686.12,685.12,0.29191966]
[1747985699764,0.46392489,686.11,685.12,0.29191966]
[1747985699963,1.41914613,686.1,685.12,0.29191966]
[1747985700262,0.46392489,686.09,685.12,0.29191966]
[1747985700463,0.95522124,686.1,685.12,0.29191966]
[1747985700663,0.46392667,686.09,685.12,0.29191966]
[1747985700959,0.46392667,686.08,685.12,0.29191966]
[1747985701161,0.95522124,686.1,685.12,0.29191966]
[1747985701162,0.46392667,686.07,685.12,0.29191966]
[1747985701362,0.95522124,686.1,685.12,0.29191966]
[1747985701563,0.46389076,686.09,685.12,0.29191966]
[1747985701765,1.419112,686.08,685.12,0.29191966]
[1747985701963,0.46384331,686.07,685.12,0.29191966]
[1747985702164,0.95522124,686.08,685.12,0.29191966]
[1747985702364,0.46385694,686.07,685.12,0.29191966]
[1747985702664,0.95522124,686.08,685.12,0.29191966]
[1747985702865,0.46385537,686.07,685.12,0.29191966]
[1747985703164,0.95522124,686.08,685.12,0.29191966]
[1747985703363,0.46381251,686.07,685.12,0.29191966]
[1747985703563,0.95522124,686.08,685.12,0.29191966]
[1747985703765,0.95522124,686.06,685.12,0.29191966]
[1747985704665,0.95522124,686.05,685.12,0.29191966]
[1747985705461,0.46384788,686.04,685.12,0.29191966]
[1747985705661,0.46384788,686.03,685.12,0.29191966]
[1747985705865,0.46384788,686.02,685.12,0.29191966]
[1747985706065,0.46384788,686.01,685.12,0.29191966]
[1747985706265,0.46384788,686.0,685.12,0.29191966]
[1747985706563,0.46384788,685.99,685.12,0.29191966]
[1747985706768,0.46384788,685.98,685.12,0.29191966]
[1747985706969,0.95522124,686.01,685.12,0.29191966]
[1747985707169,0.46380526,686.0,685.12,0.29191966]
[1747985707370,0.46380526,685.99,685.12,0.29191966]
[1747985707670,0.46380526,685.98,685.12,0.29191966]
[1747985707867,0.46380526,685.97,685.12,0.29191966]
[1747985708070,0.46380526,685.96,685.12,0.29191966]
[1747985708264,0.46380526,685.95,685.12,0.29191966]
[1747985708468,0.46380526,685.94,685.12,0.29191966]
[1747985708764,0.95522124,685.95,685.12,0.29191966]
[1747985708765,0.46380526,685.93,685.12,0.29191966]
[1747985708964,0.46372328,685.92,685.12,0.29191966]
[1747985709269,0.46372328,685.91,685.12,0.29191966]
[1747985709570,0.46372328,685.9,685.12,0.29191966]
[1747985709869,0.46372328,685.89,685.12,0.29191966]
[1747985710070,0.95522124,685.95,685.12,0.29191966]
[1747985710272,0.95522124,685.89,685.12,0.29191966]
[1747985711767,0.95522124,685.88,685.12,0.29191966]
[1747985714079,0.95522124,685.87,685.12,0.29191966]
[1747985715575,0.95522124,685.86,685.12,0.29191966]
[1747985716877,0.95522124,685.85,685.12,0.29191966]
[1747985718877,0.95522124,685.84,685.12,0.29191966]
[1747985719878,0.95522124,685.83,685.12,0.29191966]
[1747985720981,0.95522124,685.82,685.12,0.29191966]
[1747985722675,0.95522124,685.81,685.12,0.29191966]
[1747985723680,1.045,685.8,685.12,0.29191966]
[1747985723982,2.00022124,685.8,685.12,0.29191966]
[1747985725484,0.95522124,685.79,685.12,0.29191966]
[1747985727487,0.95522124,685.78,685.12,0.29191966]
[1747985729086,0.95522124,685.77,685.12,0.29191966]
[1747985730589,0.95522124,685.76,685.12,0.29191966]
[1747985732089,0.95522124,685.75,685.12,0.29191966]
[1747985733590,0.95522124,685.74,685.12,0.29191966]
[1747985735491,0.95522124,685.73,685.12,0.29191966]
[1747985737092,0.95522124,685.72,685.12,0.29191966]
[1747985737894,0.46378086,685.71,685.12,0.29191966]
[1747985738093,0.46378086,685.7,685.12,0.29191966]
[1747985738293,0.95522124,685.72,685.12,0.29191966]
[1747985738495,0.46381719,685.71,685.12,0.29191966]
[1747985738697,0.46381719,685.7,685.12,0.29191966]
[1747985738995,0.46381719,685.69,685.12,0.29191966]
[1747985739293,0.95522124,685.71,685.12,0.29191966]
[1747985739493,0.46383984,685.7,685.12,0.29191966]
[1747985739793,0.46383984,685.69,685.12,0.29191966]
[1747985739993,0.95522124,685.71,685.12,0.29191966]
[1747985740194,0.46383918,685.7,685.12,0.29191966]
[1747985740497,0.46383918,685.69,685.12,0.29191966]
[1747985740689,0.46386157,685.68,685.12,0.29191966]
[1747985740893,0.95522124,685.69,685.12,0.29191966]
[1747985741388,0.46389001,685.68,685.12,0.29191966]
[1747985741592,0.95522124,685.69,685.12,0.29191966]
[1747985741793,0.46389067,685.68,685.12,0.29191966]
[1747985741993,0.95522124,685.69,685.12,0.29191966]
[1747985742196,0.46389255,685.68,685.12,0.29191966]
[1747985742397,0.95522124,685.69,685.12,0.29191966]
[1747985742590,0.95522124,685.67,685.12,0.29191966]
[1747985744296,0.95522124,685.67,684.37,1.80656811]
[1747985744597,1.08640777,685.75,684.39,0.29223103]
[1747985744797,0.4639098,685.74,684.39,0.29223103]
[1747985744997,0.4639098,685.73,684.39,0.29223103]
[1747985745193,0.4639098,685.72,684.39,0.29223103]
[1747985745398,0.4639098,685.71,684.39,0.29223103]
[1747985745598,0.4639098,685.7,684.39,0.29223103]
[1747985745798,0.4639098,685.69,684.39,0.29223103]
[1747985745999,0.4639098,685.68,684.39,0.29223103]
[1747985746193,1.08640777,685.75,684.39,0.29223103]
[1747985746399,0.46395957,685.74,684.39,0.29223103]
[1747985746699,0.95522124,685.67,684.39,0.29223103]
[1747985748302,1.08640777,685.77,684.39,0.29223103]
[1747985748496,0.46402627,685.76,684.39,0.29223103]
[1747985748701,0.46402627,685.75,684.39,0.29223103]
[1747985748895,0.46402627,685.74,684.39,0.29223103]
[1747985749096,0.46402627,685.73,684.39,0.29223103]
[1747985749295,0.46402627,685.72,684.39,0.29223103]
[1747985749596,0.46402627,685.71,684.39,0.29223103]
[1747985749801,0.46217654,685.7,684.39,0.29223103]
[1747985749997,0.46217654,685.69,684.39,0.29223103]
[1747985750201,0.46217654,685.68,684.39,0.29223103]
[1747985750496,0.95522124,685.7,684.39,0.29223103]
[1747985750800,0.46222661,685.69,684.39,0.29223103]
[1747985750997,0.46222661,685.68,684.39,0.29223103]
[1747985751201,0.95522124,685.7,684.39,0.29223103]
[1747985751402,0.46267077,685.69,684.39,0.29223103]
[1747985751602,0.46267077,685.68,684.39,0.29223103]
[1747985751802,0.46267077,685.67,684.39,0.29223103]
[1747985753104,0.95522124,685.66,684.39,0.29223103]
[1747985754304,0.95522124,685.77,684.39,0.29223103]
[1747985754505,0.46280291,685.76,684.39,0.29223103]
[1747985754704,0.46280291,685.75,684.39,0.29223103]
[1747985754903,0.46280291,685.74,684.39,0.29223103]
[1747985755104,0.46280291,685.73,684.39,0.29223103]
[1747985755300,0.46324565,685.72,684.39,0.29223103]
[1747985755501,0.46324565,685.71,684.39,0.29223103]
[1747985755805,0.46324565,685.7,684.39,0.29223103]
[1747985756907,0.95522124,685.71,684.39,0.29223103]
[1747985757107,0.46337402,685.7,684.39,0.29223103]
[1747985757307,0.46337402,685.69,684.39,0.29223103]
[1747985757509,0.46337402,685.68,684.39,0.29223103]
[1747985757806,0.46337402,685.67,684.39,0.29223103]
[1747985758007,0.46337402,685.66,684.39,0.29223103]
[1747985758207,0.46337402,685.65,684.39,0.29223103]
[1747985759711,0.95522124,685.64,684.39,2.09879914]
[1747985760009,0.46337402,685.63,684.39,2.09879914]
[1747985761012,0.95522124,685.62,684.39,2.09879914]
[1747985762513,1.08640777,685.65,684.53,1.80656811]
[1747985762706,0.46375242,685.64,684.54,0.292167]
[1747985762907,0.46375242,685.63,684.54,0.292167]
[1747985763110,0.46375242,685.62,684.54,0.292167]
[1747985763314,0.46375242,685.61,684.54,0.292167]
[1747985763514,0.46386847,685.6,684.54,0.292167]